fUST/lending_fUST_20250314
["ID","MTS","AMOUNT","RATE_DAILY","PERIOD"]
[356136645,1741939843378,-1147.89,0.00010192,2]
[356136646,1741939843388,-500.0,0.00010192,2]
[356136647,1741939843398,-507.94780832,0.00010192,2]
[356136648,1741939843407,-911.08,0.00010192,2]
[356136649,1741939843418,-500.0,0.00010192,2]
[356136650,1741939843428,-9048.94,0.00010192,2]
[356136651,1741939843437,-500.0,0.00010192,2]
[356136652,1741939843448,-500.0,0.00010192,2]
[356136653,1741939843457,-12540.64192519,0.00010192,2]
[356136666,1741939846013,-500.0,0.00010191,2]
[356136668,1741939846022,-10252.18807481,0.00010192,2]
[356136669,1741939846032,-619.2,0.00010192,2]
[356136671,1741939846041,-500.0,0.00010192,2]
[356136673,1741939846051,-503.81783537,0.00010192,2]
[356136675,1741939846061,-500.0,0.00010192,2]
[356136676,1741939846070,-505.87172887,0.00010192,2]
[356136677,1741939846080,-500.0,0.00010192,2]
[356136678,1741939846089,-500.0,0.00010192,2]
[356136679,1741939846099,-5856.17,0.00010192,2]
[356136680,1741939846108,-500.0,0.00010192,2]
[356136681,1741939846118,-591.37,0.00010192,2]
[356136682,1741939846127,-500.0,0.00010192,2]
[356136683,1741939846137,-957.74,0.00010192,2]
[356136684,1741939846147,-500.0,0.00010192,2]
[356136685,1741939846156,-500.0,0.00010192,2]
[356136686,1741939846166,-520.0192076,0.00010192,2]
[356136687,1741939846175,-2637.6,0.00010192,2]
[356136688,1741939846184,-500.0,0.00010192,2]
[356136689,1741939846194,-1086.95,0.00010192,2]
[356136690,1741939846204,-500.0,0.00010192,2]
[356136691,1741939846213,-500.0,0.00010192,2]
[356136692,1741939846223,-841.69,0.00010192,2]
[356136693,1741939846232,-3885.02,0.00010192,2]
[356136694,1741939846242,-924.44,0.00010192,2]
[356136695,1741939846252,-12062.9,0.00010192,2]
[356136696,1741939846262,-560.38,0.00010192,2]
[356136697,1741939846271,-500.0,0.00010192,2]
[356136698,1741939846281,-501.51550646,0.00010192,2]
[356136699,1741939846291,-1130.53,0.00010192,2]
[356136700,1741939846300,-500.0,0.00010192,2]
[356136701,1741939846310,-744.2,0.00010192,2]
[356136702,1741939846320,-863.58,0.00010192,2]
[356136703,1741939846329,-500.0,0.00010192,2]
[356136704,1741939846339,-500.0,0.00010192,2]
[356136705,1741939846348,-500.0,0.00010192,2]
[356136706,1741939846358,-260.13948731,0.00010192,2]
[356136707,1741939846370,-408.78051269,0.00010192,2]
[356136708,1741939846380,-0.02428531,0.00010192,2]
[356136709,1741939846808,-173.64708036,0.00010192,2]
[356136710,1741940105052,201.44,0.000125,3]
[356136711,1741940114463,302.0,0.000125,3]
[356136712,1741940118091,600.0,0.000125,3]
[356136719,1741940291141,4231.0,0.000125,3]
[356136720,1741940297881,160.0,0.00012235,3]
[356136722,1741940317994,1509.0,0.000125,3]
[356136723,1741940355682,173.8983835,9.232e-05,2]
[356136724,1741940409989,1000.0,0.000125,3]
[356136725,1741940413299,600.0,0.000125,3]
[356136741,1741940713108,8510.6887158,9.158e-05,2]
[356136743,1741940719914,600.0,0.000125,3]
[356136752,1741940742144,-200.46988054,0.0001009,2]
[356136753,1741940742166,-200.46988051,0.00010091,2]
[356136754,1741940742187,-200.46988051,0.00010091,2]
[356136755,1741940742208,-200.46988051,0.00010092,2]
[356136756,1741940742228,-200.46988051,0.00010092,2]
[356136757,1741940742248,-500.0,0.00010173,2]
[356136758,1741940742269,-500.0,0.00010173,2]
[356136759,1741940742289,-500.34882177,0.00010173,2]
[356136760,1741940742310,-126.9604618,0.00010186,2]
[356136779,1741940754092,-173.0395382,0.00010186,2]
[356136780,1741940754117,-500.0,0.00010187,2]
[356136781,1741940754141,-500.0,0.00010187,2]
[356136782,1741940754167,-379.7587395,0.00010187,2]
[356136783,1741940754189,-7247.12,0.00010188,2]
[356136784,1741940754219,-1157.25,0.00010188,2]
[356136785,1741940754246,-500.0,0.00010188,2]
[356136786,1741940754270,-500.0,0.00010188,2]
[356136787,1741940754294,-203.5354522,0.00010188,2]
[356136788,1741940754315,-500.0,0.00010189,2]
[356136789,1741940754337,-500.68320999,0.00010189,2]
[356136790,1741940754360,-500.0,0.00010189,2]
[356136791,1741940754382,-500.0,0.00010189,2]
[356136792,1741940754407,-500.0,0.00010189,2]
[356136793,1741940754694,-500.0,0.00010189,2]
[356136794,1741940754715,-1188.56,0.00010189,2]
[356136795,1741940754736,-566.93,0.00010189,2]
[356136796,1741940754759,-500.0,0.00010189,2]
[356136797,1741940754780,-500.0,0.00010189,2]
[356136798,1741940754801,-737.18,0.00010189,2]
[356136799,1741940754823,-3776.16,0.00010189,2]
[356136800,1741940754845,-4946.19,0.00010189,2]
[356136801,1741940754866,-4480.3,0.00010189,2]
[356136802,1741940754888,-500.0,0.00010189,2]
[356136803,1741940754909,-500.0,0.00010189,2]
[356136804,1741940754933,-1578.55,0.00010189,2]
[356136805,1741940754955,-1401.43,0.00010189,2]
[356136806,1741940754979,-1287.28,0.00010189,2]
[356136807,1741940755001,-721.74,0.00010189,2]
[356136808,1741940755030,-190.24141574,0.00010189,2]
[356136811,1741940815088,-218.81182247,0.00010188,2]
[356136812,1741940842084,-281.18817753,0.00010188,2]
[356136813,1741940842106,-300.0,0.00010188,2]
[356136814,1741940842129,-1928.37940515,0.00010188,2]
[356136815,1741940846139,-427.54301082,0.00010188,2]
[356136822,1741940887688,176.28017851,0.0001001,2]
[356136827,1741940918353,666.50018246,0.0001,7]
[356136834,1741940951133,-300.0,0.00010187,2]
[356136835,1741940951158,-2384.17758403,0.00010188,2]
[356136836,1741940951179,-1343.04,0.00010188,2]
[356136837,1741940951201,-1233.65,0.00010188,2]
[356136838,1741940951221,-500.0,0.00010188,2]
[356136839,1741940951243,-271.80527774,0.00010188,2]
[356136840,1741940951264,-6945.16,0.00010188,2]
[356136841,1741940951284,-1240.04,0.00010188,2]
[356136842,1741940951305,-1547.06,0.00010188,2]
[356136843,1741940951326,-4277.45,0.00010188,2]
[356136844,1741940951348,-584.94453458,0.00010188,2]
[356136845,1741940951368,-887.25,0.00010189,2]
[356136846,1741940951389,-500.0,0.00010189,2]
[356136847,1741940951410,-500.0,0.00010189,2]
[356136848,1741940951431,-1040.87,0.00010189,2]
[356136849,1741940951694,-500.0,0.00010189,2]
[356136850,1741940951717,-500.0,0.00010189,2]
[356136851,1741940951738,-593.4,0.00010189,2]
[356136852,1741940951760,-3285.09,0.00010189,2]
[356136853,1741940951780,-696.95,0.00010189,2]
[356136854,1741940951801,-500.0,0.00010189,2]
[356136855,1741940951823,-500.0,0.00010189,2]
[356136856,1741940951844,-2537.87,0.00010189,2]
[356136857,1741940951865,-1079.83,0.00010189,2]
[356136858,1741940951886,-967.66,0.00010189,2]
[356136859,1741940951906,-500.0,0.00010189,2]
[356136860,1741940951927,-746.65,0.00010189,2]
[356136861,1741940951948,-825.83,0.00010189,2]
[356136862,1741940951969,-2527.7,0.00010189,2]
[356136863,1741940951990,-1139.03,0.00010189,2]
[356136864,1741940952012,-500.0,0.00010189,2]
[356136865,1741940952033,-500.0,0.00010189,2]
[356136866,1741940952054,-3723.15,0.00010189,2]
[356136867,1741940952079,-500.0,0.00010189,2]
[356136868,1741940952101,-500.0,0.00010189,2]
[356136869,1741940952128,-3618.82,0.00010189,2]
[356136870,1741940952150,-500.0,0.00010189,2]
[356136871,1741940952171,-4293.62,0.00010189,2]
[356136872,1741940952192,-426.93156309,0.00010189,2]
[356136873,1741940952214,-1055.7,0.00010189,2]
[356136874,1741940952235,-771.75,0.00010189,2]
[356136875,1741940952256,-543.66,0.00010189,2]
[356136876,1741940952277,-500.0,0.00010189,2]
[356136877,1741940952297,-4799.92,0.00010189,2]
[356136878,1741940952318,-1512.78,0.00010189,2]
[356136879,1741940952339,-900.16,0.00010189,2]
[356136880,1741940952362,-500.0,0.00010189,2]
[356136881,1741940952384,-500.0,0.00010189,2]
[356136882,1741940952405,-691.67,0.00010189,2]
[356136883,1741940952427,-500.0,0.00010189,2]
[356136884,1741940952448,-3809.34494397,0.00010189,2]
[356136889,1741941012270,600.0,0.000125,3]
[356136890,1741941022789,160.0,0.00012272,3]
[356136968,1741941042378,-278.84084252,0.00010187,2]
[356136997,1741941044054,-21.15915748,0.00010187,2]
[356136998,1741941044064,-271.02514098,0.00010188,2]
[356137033,1741941046304,-47.50477898,0.00010188,2]
[356137037,1741941175551,-248.8156253,0.00010186,2]
[356137038,1741941184572,24900.0,9.19e-05,2]
[356137039,1741941187829,-296.15972086,0.00010188,2]
[356137040,1741941202151,-150.0,0.00010187,2]
[356137041,1741941209964,-208.7783318,0.00010187,2]
[356137043,1741941312339,600.0,0.000125,3]
[356137044,1741941362224,5653.09487773,0.00014,30]
[356137045,1741941389167,250.0,9.189e-05,2]
[356137046,1741941391664,200.0,0.000125,3]
[356137047,1741941405931,23407.94535634,0.000125,3]
[356137048,1741941452703,194.0,0.00012,3]
[356137049,1741941457060,194.0,0.00012,3]
[356137050,1741941461418,194.0,0.00012,3]
[356137051,1741941475455,194.0,0.00012,3]
[356137052,1741941489874,191.03599598,0.00012,3]
[356137053,1741941492274,2592.45464366,0.00012,3]
[356137054,1741941507728,1287.36,0.00012,10]
[356137055,1741941544266,15611.3933656,9.261e-05,2]
[356137057,1741941611757,600.0,0.00012,3]
[356137058,1741941612319,-871.06381909,0.00010086,2]
[356137059,1741941612343,-300.0,0.00010184,2]
[356137060,1741941612368,-500.0,0.00010185,2]
[356137061,1741941612396,-187.0,0.00010185,2]
[356137062,1741941612422,-500.0,0.00010185,2]
[356137063,1741941612448,-500.0,0.00010185,2]
[356137064,1741941612472,-500.0,0.00010185,2]
[356137065,1741941612495,-141.2216682,0.00010187,2]
[356137066,1741941612517,-210.25638809,0.00010187,2]
[356137067,1741941612539,-6662.02,0.00010187,2]
[356137068,1741941612562,-1095.75,0.00010187,2]
[356137069,1741941612583,-500.0,0.00010187,2]
[356137070,1741941612608,-500.0,0.00010187,2]
[356137071,1741941612632,-500.0,0.00010187,2]
[356137072,1741941612657,-4542.59,0.00010187,2]
[356137073,1741941612680,-1287.08,0.00010187,2]
[356137074,1741941612702,-1182.24,0.00010187,2]
[356137075,1741941612724,-1272.62,0.00010187,2]
[356137076,1741941612746,-500.0,0.00010187,2]
[356137077,1741941612768,-2264.23757772,0.00010187,2]
[356137078,1741941612790,-327.11915354,0.00010188,2]
[356137079,1741941612814,-506.19,0.00010188,2]
[356137080,1741941612836,-500.0,0.00010188,2]
[356137081,1741941612857,-500.0,0.00010188,2]
[356137082,1741941612879,-532.07,0.00010188,2]
[356137083,1741941612900,-500.0,0.00010188,2]
[356137084,1741941612922,-500.0,0.00010188,2]
[356137085,1741941612944,-500.0,0.00010188,2]
[356137086,1741941612967,-442.00509356,0.00010188,2]
[356137087,1741941612990,-500.0,0.00010188,2]
[356137088,1741941613012,-500.0,0.00010188,2]
[356137089,1741941613034,-500.0,0.00010188,2]
[356137090,1741941613058,-500.0,0.00010188,2]
[356137091,1741941613082,-543.31,0.00010188,2]
[356137092,1741941613105,-706.46,0.00010188,2]
[356137093,1741941613128,-500.0,0.00010188,2]
[356137094,1741941613150,-500.0,0.00010188,2]
[356137095,1741941613173,-500.0,0.00010188,2]
[356137096,1741941613196,-1034.84,0.00010188,2]
[356137097,1741941613223,-500.0,0.00010188,2]
[356137098,1741941613247,-513.30045952,0.00010188,2]
[356137099,1741941613271,-500.0,0.00010188,2]
[356137100,1741941613294,-500.0,0.00010188,2]
[356137101,1741941613316,-523.69,0.00010188,2]
[356137102,1741941613338,-500.0,0.00010188,2]
[356137103,1741941613361,-667.91,0.00010188,2]
[356137104,1741941613387,-501.01749722,0.00010188,2]
[356137105,1741941613410,-500.0,0.00010188,2]
[356137106,1741941613432,-715.54,0.00010188,2]
[356137107,1741941613455,-2536.04,0.00010188,2]
[356137108,1741941613477,-500.0,0.00010188,2]
[356137109,1741941613499,-507.60563906,0.00010188,2]
[356137110,1741941613521,-1100.06,0.00010188,2]
[356137111,1741941613544,-1188.37,0.00010188,2]
[356137112,1741941613567,-500.0,0.00010188,2]
[356137113,1741941613589,-500.0,0.00010188,2]
[356137114,1741941613611,-500.0,0.00010188,2]
[356137115,1741941613634,-500.0,0.00010188,2]
[356137116,1741941613655,-5612.16,0.00010188,2]
[356137117,1741941613678,-4099.22,0.00010188,2]
[356137118,1741941613701,-12741.82,0.00010188,2]
[356137119,1741941613724,-739.59,0.00010188,2]
[356137120,1741941613746,-500.0,0.00010188,2]
[356137121,1741941613770,-3148.21,0.00010188,2]
[356137122,1741941613792,-455.64780768,0.00010188,2]
[356137123,1741941613815,-2432.12,0.00010188,2]
[356137124,1741941613838,-575.56,0.00010188,2]
[356137125,1741941613861,-500.0,0.00010188,2]
[356137126,1741941613883,-500.0,0.00010188,2]
[356137127,1741941613905,-515.1816187,0.00010188,2]
[356137128,1741941613927,-500.0,0.00010188,2]
[356137129,1741941613949,-508.32568487,0.00010188,2]
[356137130,1741941613972,-791.42,0.00010188,2]
[356137131,1741941613994,-521.01,0.00010188,2]
[356137132,1741941614016,-500.0,0.00010188,2]
[356137133,1741941614039,-568.68,0.00010188,2]
[356137134,1741941614061,-555.68,0.00010188,2]
[356137135,1741941614084,-500.0,0.00010188,2]
[356137136,1741941614107,-1091.57,0.00010188,2]
[356137137,1741941614130,-500.0,0.00010188,2]
[356137138,1741941614152,-862.65,0.00010188,2]
[356137139,1741941614175,-500.0,0.00010188,2]
[356137140,1741941614198,-500.0,0.00010188,2]
[356137141,1741941614220,-500.0,0.00010188,2]
[356137142,1741941614242,-500.0,0.00010188,2]
[356137143,1741941614478,-520.76104699,0.00010188,2]
[356137144,1741941614500,-500.0,0.00010188,2]
[356137145,1741941614522,-500.0,0.00010188,2]
[356137146,1741941614544,-897.0,0.00010188,2]
[356137147,1741941614566,-500.0,0.00010188,2]
[356137148,1741941614588,-792.1,0.00010188,2]
[356137149,1741941614610,-500.0,0.00010188,2]
[356137150,1741941614632,-3468.03,0.00010188,2]
[356137151,1741941614654,-927.34,0.00010188,2]
[356137152,1741941614677,-600.8,0.00010188,2]
[356137153,1741941614700,-500.0,0.00010188,2]
[356137154,1741941614722,-500.0,0.00010188,2]
[356137155,1741941614745,-4114.72,0.00010188,2]
[356137156,1741941614767,-566.73,0.00010188,2]
[356137157,1741941614789,-500.0,0.00010188,2]
[356137158,1741941614811,-11560.27,0.00010188,2]
[356137159,1741941614833,-747.2,0.00010188,2]
[356137160,1741941614854,-500.0,0.00010188,2]
[356137161,1741941614876,-500.0,0.00010188,2]
[356137162,1741941614899,-2422.38,0.00010188,2]
[356137163,1741941614922,-500.0,0.00010188,2]
[356137164,1741941614944,-500.0,0.00010188,2]
[356137165,1741941614967,-1083.42,0.00010188,2]
[356137166,1741941614989,-511.73874616,0.00010188,2]
[356137167,1741941615011,-1449.74,0.00010188,2]
[356137168,1741941615033,-1041.66,0.00010188,2]
[356137169,1741941615055,-500.0,0.00010188,2]
[356137170,1741941615078,-3568.02,0.00010188,2]
[356137171,1741941615100,-500.0,0.00010188,2]
[356137172,1741941615123,-500.0,0.00010188,2]
[356137173,1741941615147,-6644.58,0.00010188,2]
[356137174,1741941615171,-662.85,0.00010188,2]
[356137175,1741941615193,-500.0,0.00010188,2]
[356137176,1741941615215,-918.16,0.00010188,2]
[356137177,1741941615238,-566.32966444,0.00010188,2]
[356137178,1741941615260,-500.0,0.00010188,2]
[356137179,1741941615283,-1351.66,0.00010188,2]
[356137180,1741941615306,-1555.22,0.00010188,2]
[356137181,1741941615328,-500.0,0.00010188,2]
[356137182,1741941615350,-689.66,0.00010188,2]
[356137183,1741941615375,-500.0,0.00010188,2]
[356137184,1741941615397,-1161.01,0.00010188,2]
[356137185,1741941615420,-500.0,0.00010188,2]
[356137186,1741941615442,-1011.71,0.00010188,2]
[356137187,1741941615465,-636.08,0.00010188,2]
[356137188,1741941615486,-850.28,0.00010188,2]
[356137189,1741941615507,-500.0,0.00010188,2]
[356137190,1741941615529,-4599.92,0.00010188,2]
[356137191,1741941615552,-997.51,0.00010188,2]
[356137192,1741941615573,-500.0,0.00010188,2]
[356137193,1741941615595,-885.92,0.00010188,2]
[356137194,1741941615617,-500.0,0.00010188,2]
[356137195,1741941615638,-11149.74813516,0.00010188,2]
[356137196,1741941629933,-282.06692467,0.00010088,2]
[356137197,1741941632114,5000.0,0.0001001,2]
[356137198,1741941636842,-500.0,0.00010088,2]
[356137199,1741941638441,-202.25387966,0.00010088,2]
[356137200,1741941640401,-731.54360366,0.00010088,2]
[356137201,1741941645829,-382.76503061,0.00010088,2]
[356137202,1741941650244,-298.77309953,0.00010088,2]
[356137203,1741941650267,-131.43028402,0.00010187,2]
[356137204,1741941665868,-237.99323008,0.00010186,2]
[356137205,1741941667939,-62.00676992,0.00010186,2]
[356137206,1741941671238,-1094.06971598,0.00010187,2]
[356137207,1741941671262,-1574.56,0.00010187,2]
[356137208,1741941671284,-500.0,0.00010187,2]
[356137209,1741941671307,-1050.1,0.00010187,2]
[356137210,1741941671329,-500.0,0.00010187,2]
[356137211,1741941671353,-4271.48,0.00010187,2]
[356137212,1741941671375,-500.0,0.00010187,2]
[356137213,1741941671401,-500.0,0.00010187,2]
[356137214,1741941671423,-2461.85,0.00010187,2]
[356137215,1741941671445,-235361.99186484,0.00010188,2]
[356137216,1741941671467,-500.0,0.00010188,2]
[356137217,1741941671489,-500.0,0.00010188,2]
[356137218,1741941671511,-526.94841918,0.00010188,2]
[356137219,1741941673316,-37.65158082,0.00010188,2]
[356137220,1741941673338,-132.4331938,0.00010188,2]
[356137221,1741941680210,-415.24577086,0.00010187,2]
[356137222,1741941685445,5000.0,0.0001001,2]
[356137223,1741941687338,-84.75422914,0.00010187,2]
[356137224,1741941687361,-110.95498006,0.00010187,2]
[356137225,1741941694131,5000.0,0.0001001,2]
[356137226,1741941694389,-500.0,0.00010187,2]
[356137227,1741941697697,-484.56608377,0.00010187,2]
[356137228,1741941699339,-150.0,0.00010187,2]
[356137229,1741941702357,150.0,0.0001001,2]
[356137230,1741941707013,-150.0,0.00010187,2]
[356137231,1741941709949,-189.2297652,0.00010187,2]
[356137232,1741941710230,5000.0,0.0001001,2]
[356137233,1741941714958,99830.0,0.0001525,120]
[356137234,1741941715868,-207.15,0.00010187,2]
[356137235,1741941723679,-150.0,0.00010186,2]
[356137236,1741941725721,4006.69215452,0.0001001,2]
[356137237,1741941727922,-150.0,0.00010186,2]
[356137238,1741941727949,-38.1017105,0.00010187,2]
[356137239,1741941753969,-177.3314757,0.00010186,2]
[356137240,1741941757520,-261.7922,0.00010186,2]
[356137241,1741941911692,600.0,0.00012,3]
[356137243,1741941937112,-300.0,0.00010185,2]
[356137244,1741941937134,-4709.56764196,0.00010186,2]
[356137248,1741941992819,10000.0,9.188e-05,2]
[356137249,1741941993079,-217.32744266,0.00010185,2]
[356137253,1741942154203,-300.0,0.00010183,2]
[356137254,1741942154224,-213.14987261,0.00010184,2]
[356137255,1741942155221,-286.85012739,0.00010184,2]
[356137256,1741942155245,-500.0,0.00010184,2]
[356137257,1741942155267,-303.54428512,0.00010184,2]
[356137258,1741942155289,-500.0,0.00010184,2]
[356137259,1741942155310,-178.81399561,0.00010184,2]
[356137260,1741942155333,-500.0,0.00010184,2]
[356137261,1741942155356,-215.46176817,0.00010184,2]
[356137262,1741942155378,-500.0,0.00010184,2]
[356137263,1741942155400,-500.0,0.00010184,2]
[356137264,1741942155424,-500.0,0.00010184,2]
[356137265,1741942155446,-500.0,0.00010184,2]
[356137266,1741942155468,-500.0,0.00010184,2]
[356137267,1741942155488,-14679.62745008,0.00010185,2]
[356137268,1741942155509,-540.7210756,0.00010185,2]
[356137269,1741942155530,-500.0,0.00010186,2]
[356137270,1741942155553,-509.9,0.00010186,2]
[356137271,1741942155578,-500.0,0.00010186,2]
[356137272,1741942155598,-500.0,0.00010186,2]
[356137273,1741942155620,-500.0,0.00010186,2]
[356137274,1741942155641,-500.0,0.00010186,2]
[356137275,1741942155666,-500.0,0.00010186,2]
[356137276,1741942155687,-500.0,0.00010186,2]
[356137277,1741942155708,-4742.53,0.00010186,2]
[356137278,1741942155728,-500.0,0.00010186,2]
[356137279,1741942155749,-500.0,0.00010186,2]
[356137280,1741942155769,-500.0,0.00010186,2]
[356137281,1741942155790,-1267.47,0.00010186,2]
[356137282,1741942155810,-1350.96,0.00010186,2]
[356137283,1741942155831,-500.0,0.00010186,2]
[356137284,1741942155851,-220.15514489,0.00010186,2]
[356137285,1741942155872,-6640.93,0.00010186,2]
[356137286,1741942155892,-1310.29,0.00010186,2]
[356137287,1741942155914,-500.0,0.00010186,2]
[356137288,1741942155935,-322.92315769,0.00010186,2]
[356137289,1741942155957,-1077.38,0.00010186,2]
[356137290,1741942155978,-1174.44,0.00010186,2]
[356137291,1741942155999,-3180.3,0.00010186,2]
[356137292,1741942156021,-1508.95,0.00010186,2]
[356137293,1741942156042,-501.87,0.00010186,2]
[356137294,1741942156063,-500.0,0.00010187,2]
[356137295,1741942156084,-500.0,0.00010187,2]
[356137296,1741942156106,-677.03,0.00010187,2]
[356137297,1741942156128,-500.0,0.00010187,2]
[356137298,1741942156150,-520.67,0.00010187,2]
[356137299,1741942156171,-500.0,0.00010187,2]
[356137300,1741942156191,-516.80621731,0.00010187,2]
[356137301,1741942156213,-500.0,0.00010187,2]
[356137302,1741942156233,-500.0,0.00010187,2]
[356137303,1741942156253,-509.35176024,0.00010187,2]
[356137304,1741942156272,-500.0,0.00010187,2]
[356137305,1741942156293,-513.05416986,0.00010187,2]
[356137306,1741942156312,-500.0,0.00010187,2]
[356137307,1741942156333,-4093.5,0.00010187,2]
[356137308,1741942156353,-500.0,0.00010187,2]
[356137309,1741942156374,-2359.27,0.00010187,2]
[356137310,1741942156395,-820.29,0.00010187,2]
[356137311,1741942156419,-679.2,0.00010187,2]
[356137312,1741942156440,-500.0,0.00010187,2]
[356137313,1741942156461,-1135.09,0.00010187,2]
[356137314,1741942156482,-1070.45,0.00010187,2]
[356137315,1741942156503,-500.0,0.00010187,2]
[356137316,1741942156524,-2479.17,0.00010187,2]
[356137317,1741942156544,-512.97748431,0.00010187,2]
[356137318,1741942156565,-500.0,0.00010187,2]
[356137319,1741942156590,-500.0,0.00010187,2]
[356137320,1741942156613,-3605.22,0.00010187,2]
[356137321,1741942156633,-501.23740279,0.00010187,2]
[356137322,1741942156654,-511.84440826,0.00010187,2]
[356137323,1741942156676,-3651.67,0.00010187,2]
[356137324,1741942156696,-728.51,0.00010187,2]
[356137325,1741942156717,-4278.75,0.00010187,2]
[356137326,1741942156737,-500.0,0.00010187,2]
[356137327,1741942156759,-500.0,0.00010187,2]
[356137328,1741942156779,-500.0,0.00010187,2]
[356137329,1741942156798,-500.0,0.00010187,2]
[356137330,1741942156818,-500.0,0.00010187,2]
[356137331,1741942156839,-1507.54,0.00010187,2]
[356137332,1741942156859,-500.0,0.00010187,2]
[356137333,1741942156879,-969.56,0.00010187,2]
[356137334,1741942156899,-689.28,0.00010187,2]
[356137335,1741942156920,-4408.26,0.00010187,2]
[356137336,1741942156939,-500.0,0.00010187,2]
[356137337,1741942156959,-500.0,0.00010187,2]
[356137338,1741942156981,-949.24,0.00010187,2]
[356137339,1741942157003,-6729.47,0.00010187,2]
[356137340,1741942157025,-500.0,0.00010187,2]
[356137341,1741942157046,-500.0,0.00010187,2]
[356137342,1741942157067,-1362.0,0.00010187,2]
[356137343,1741942157088,-209071.05654531,0.00010187,2]
[356137344,1741942178470,1444.18,0.00014,30]
[356137346,1741942212665,600.0,0.00012,3]
[356137347,1741942214475,-150.97123,0.00010185,2]
[356137348,1741942220091,-149.02877,0.00010185,2]
[356137349,1741942220115,-96.58504043,0.00010186,2]
[356137350,1741942222142,-403.41495957,0.00010186,2]
[356137351,1741942223229,-716.06,0.00010186,2]
[356137352,1741942224495,-457.3912012,0.00010186,2]
[356137353,1741942231537,-218.75922137,0.00010186,2]
[356137407,1741942232527,-1576.98506532,0.00010186,2]
[356137408,1741942232539,-953.74451211,0.00010186,2]
[356137409,1741942232548,-1025.85,0.00010186,2]
[356137410,1741942232557,-589.81,0.00010186,2]
[356137411,1741942232566,-500.0,0.00010186,2]
[356137412,1741942232576,-233.57316464,0.00010186,2]
[356137413,1741942233225,-266.42683536,0.00010186,2]
[356137414,1741942233236,-786.11,0.00010186,2]
[356137415,1741942233245,-505.68316821,0.00010186,2]
[356137416,1741942233255,-500.0,0.00010186,2]
[356137417,1741942233265,-1087.8,0.00010186,2]
[356137418,1741942233275,-500.0,0.00010186,2]
[356137419,1741942233285,-500.0,0.00010186,2]
[356137420,1741942233294,-245.61381043,0.00010186,2]
[356137421,1741942233304,-500.0,0.00010186,2]
[356137422,1741942233314,-500.0,0.00010186,2]
[356137423,1741942233323,-3711.34,0.00010186,2]
[356137424,1741942233333,-378.50475292,0.00010186,2]
[356137425,1741942233342,-41119.47881617,0.00010187,2]
[356137426,1741942235199,-266.42683536,0.00010186,2]
[356137449,1741942238307,-233.57316464,0.00010186,2]
[356137451,1741942238317,-500.0,0.00010186,2]
[356137453,1741942238327,-273.69990114,0.00010186,2]
[356137454,1741942238336,-21265.85463852,0.00010187,2]
[356137455,1741942238345,-500.0,0.00010187,2]
[356137456,1741942238354,-2430.37,0.00010187,2]
[356137457,1741942238364,-1575.09,0.00010187,2]
[356137458,1741942238374,-509.03898987,0.00010187,2]
[356137459,1741942238383,-860.68,0.00010187,2]
[356137460,1741942238392,-530.46,0.00010187,2]